bitfinex-derivatives/quotes_SOLF0:USTF0_20240902
["timestamp","ask_amount","ask_price","bid_price","bid_amount"]
[1725291431191,3.71627207,133.19,133.16,28.95]
[1725291431396,1.3501,133.22,133.16,28.95]
[1725291431596,0.048061,133.2,133.18,0.04892216]
[1725291432293,3.7542,133.19,133.18,0.04892216]
[1725291432487,6.5113,133.19,133.18,0.04892216]
[1725291432791,2.7571,133.19,133.18,0.04892216]
[1725291432998,1.4008,133.19,133.18,0.04892216]
[1725291433899,0.048061,133.2,133.18,0.04892216]
[1725291435397,3.802161,133.2,133.18,0.04892216]
[1725291436292,0.048061,133.2,133.18,3.80312216]
[1725291436796,0.048061,133.2,133.18,0.04892216]
[1725291437390,3.802161,133.2,133.18,0.04892216]
[1725291437586,0.048061,133.2,133.18,0.04892216]
[1725291438603,0.048061,133.2,133.19,32.7042]
[1725291439590,7.53049652,133.24,133.19,32.7042]
[1725291439591,3.66307839,133.25,133.19,28.95]
[1725291439789,3.7532,133.23,133.19,28.95]
[1725291440095,3.71959114,133.23,133.19,32.7041]
[1725291440395,2.8195,133.26,133.19,32.7041]
[1725291440698,0.02422351,133.22,133.2,0.04820199]
[1725291441492,0.02422351,133.22,133.2,3.80190199]
[1725291441695,0.02422351,133.22,133.21,28.95]
[1725291442103,0.02422351,133.22,133.21,32.7036]
[1725291443204,0.02422351,133.22,133.21,28.95]
[1725291443404,0.02422351,133.22,133.2,0.04820199]
[1725291444206,3.77762351,133.22,133.2,0.04820199]
[1725291444503,0.02422351,133.22,133.2,0.04820199]
[1725291444909,3.7536,133.21,133.2,0.04820199]
[1725291446205,3.7552,133.16,133.1,1.4298]
[1725291446408,3.7552,133.16,133.13,28.95]
[1725291446801,3.7549,133.17,133.13,28.95]
[1725291447003,1.4291,133.21,133.13,28.95]
[1725291447305,0.05376724,133.18,133.16,0.05302384]
[1725291447511,7.4150759,133.17,133.16,0.05302384]
[1725291448808,3.7548,133.17,133.16,0.05302384]
[1725291449905,3.7567,133.11,133.07,28.95]
[1725291450100,3.74436839,133.18,133.09,28.95]
[1725291450307,3.7552,133.16,133.12,3.7559]
[1725291450509,31.6283,133.2,133.11,28.95]
[1725291450510,3.73826511,133.17,133.11,28.95]
[1725291450706,2.6783,133.2,133.13,28.95]
[1725291451009,2.6783,133.2,133.13,29.00523423]
[1725291451212,0.0503183,133.18,133.13,0.05523423]
[1725291451507,3.7556,133.14,133.13,0.05523423]
[1725291451900,28.95,133.16,133.07,30.3221]
[1725291452106,0.0503183,133.18,133.05,30.289]
[1725291452107,28.95,133.14,133.05,30.289]
[1725291452305,32.61541494,133.14,133.05,30.289]
[1725291452505,3.66541494,133.14,133.07,28.95]
[1725291452712,28.95,133.16,133.07,28.95]
[1725291453116,3.7563,133.12,133.1,0.04984311]
[1725291453314,0.0519498,133.13,133.1,0.04984311]
[1725291454714,3.7564,133.11,133.1,0.04984311]
[1725291462223,0.0519498,133.13,133.11,3.7563]
[1725291465014,0.0519498,133.13,133.12,3.7561]
[1725291465411,3.8080498,133.13,133.1,3.80644311]
[1725291465820,3.8080498,133.13,133.1,0.04984311]
[1725291465821,0.0519498,133.13,133.1,0.04984311]
[1725291466021,0.0519498,133.13,133.1,3.80654311]
[1725291466613,3.8080498,133.13,133.1,3.80654311]
[1725291467512,3.8080498,133.13,133.1,0.04984311]
[1725291467513,3.7563,133.12,133.1,0.04984311]
[1725291467914,0.0519498,133.13,133.1,0.04984311]
[1725291468515,3.8079498,133.13,133.1,3.80644311]
[1725291470518,3.7562,133.12,133.1,3.80644311]
[1725291470723,0.0519498,133.13,133.1,0.04984311]
[1725291471925,3.8079498,133.13,133.1,3.80654311]
[1725291472324,0.0519498,133.13,133.12,3.7561]
[1725291473321,3.7545,133.18,133.15,3.7551]
[1725291473519,1.3541,133.2,133.15,3.7551]
[1725291473721,1.3541,133.2,133.13,28.95]
[1725291473924,3.7553,133.16,133.13,3.7558]
[1725291474430,0.05481539,133.16,133.13,3.80549431]
[1725291474627,3.81001539,133.16,133.13,3.80549431]
[1725291475522,0.05481539,133.16,133.13,0.04969431]
[1725291476433,3.7556,133.14,133.13,0.04969431]
[1725291481231,0.05481539,133.16,133.13,0.04969431]
[1725291481934,3.7555,133.15,133.13,0.04969431]
[1725291482328,0.05481539,133.16,133.13,0.04969431]
[1725291482725,3.81001539,133.16,133.13,0.04969431]
[1725291483932,0.05481539,133.16,133.14,3.7554]
[1725291484138,0.05481539,133.16,133.13,0.04969431]
[1725291484637,0.05481539,133.16,133.15,3.7553]
[1725291486044,0.05481539,133.16,133.14,3.7555]
[1725291486249,0.05481539,133.16,133.13,28.99969431]
[1725291486435,0.05481539,133.16,133.13,0.04969431]
[1725291488445,0.05481539,133.16,133.13,28.99969431]
[1725291488938,0.05481539,133.16,133.15,3.7553]
[1725291494450,0.05481539,133.16,133.13,28.99969431]
[1725291494651,29.00481539,133.16,133.13,0.04969431]
[1725291494855,3.7555,133.15,133.13,0.04969431]
[1725291495258,0.05481539,133.16,133.13,0.04969431]
[1725291495755,3.7556,133.14,133.13,0.04969431]
[1725291498851,3.7567,133.11,133.06,28.95]
[1725291499353,3.7567,133.11,133.05,1.3595]
[1725291499354,3.7572,133.09,133.05,1.3595]
[1725291499960,3.7571,133.09,133.05,1.3595]
[1725291500358,3.7573,133.08,133.05,5.1175]
[1725291500756,3.80757262,133.08,133.06,0.0537456]
[1725291500950,0.05027262,133.08,133.06,0.0537456]
[1725291502357,3.7576,133.07,133.06,0.0537456]
[1725291503960,29.00027262,133.08,132.99,28.95]
[1725291504161,29.00027262,133.08,132.98,28.95]
[1725291504162,31.7658,133.08,132.98,28.95]
[1725291504359,3.7586,133.04,133.0,3.7594]
[1725291504557,2.8158,133.08,133.0,28.95]
[1725291504758,32.66177398,133.11,133.01,28.95]
[1725291505061,0.05340994,133.07,133.05,0.05035341]
[1725291505659,3.758,133.06,133.05,0.05035341]
[1725291505858,0.05340994,133.07,133.05,29.00035341]
[1725291506559,28.95,133.17,133.06,28.95]
[1725291506762,3.7569,133.1,133.06,28.95]
[1725291507152,3.7569,133.1,133.07,3.7574]
[1725291507460,3.81254848,133.1,133.07,3.81174681]
[1725291508464,0.05564848,133.1,133.07,0.05434681]
[1725291509061,0.05564848,133.1,133.07,3.81174681]
[1725291509864,0.05564848,133.1,133.07,0.05434681]
[1725291510654,3.7573,133.08,133.07,0.05434681]
[1725291515462,3.7585,133.04,133.01,32.7092]
[1725291515769,3.7585,133.04,133.01,3.7592]
[1725291516066,3.7589,133.03,133.0,3.7594]
[1725291516460,3.80628067,133.03,133.0,3.81340713]
[1725291518074,3.759,133.02,133.0,0.05400713]
[1725291520469,0.04738067,133.03,133.0,0.05400713]
[1725291520967,0.04738067,133.03,133.01,3.7592]
[1725291522463,0.04738067,133.03,133.02,3.759]
[1725291525874,225.0,133.14,133.01,28.95]
[1725291526077,3.7566,133.11,133.05,28.95]
[1725291526469,3.84447783,133.12,133.07,3.7574]
[1725291526672,28.95,133.14,133.07,3.7574]
[1725291526879,0.05753511,133.12,133.09,0.05631826]
[1725291527401,3.7567,133.1,133.09,0.05631826]
[1725291528769,0.05753511,133.12,133.09,0.05631826]
[1725291528968,0.05753511,133.12,133.1,28.95]
[1725291529169,0.05753511,133.12,133.09,0.05631826]
[1725291530284,0.05753511,133.12,133.1,3.7565]
[1725291531279,0.05753511,133.12,133.09,3.81321826]
[1725291532882,0.05753511,133.12,133.1,3.7567]
[1725291536279,0.05753511,133.12,133.09,0.05631826]
[1725291536686,0.05753511,133.12,133.1,3.7565]
[1725291537383,3.90331335,133.12,133.09,0.05631826]
[1725291537980,3.7567,133.1,133.09,0.05631826]
[1725291539090,3.90331335,133.12,133.09,0.05631826]
[1725291539587,0.05753511,133.12,133.09,0.05631826]
[1725291540092,3.81373511,133.12,133.09,3.81311826]
[1725291540481,3.81373511,133.12,133.09,0.05631826]
[1725291540981,3.81373511,133.12,133.09,3.81321826]
[1725291541376,3.81373511,133.12,133.11,3.7564]
[1725291541377,0.05753511,133.12,133.11,3.7564]
[1725291542191,0.05753511,133.12,133.09,0.05631826]
[1725291542192,3.76404442,133.12,133.09,0.05631826]
[1725291542589,3.7567,133.1,133.09,0.05631826]
[1725291544887,3.7566,133.11,133.09,0.05631826]
[1725291545192,3.78954091,133.11,133.09,0.05631826]
[1725291546190,3.7567,133.1,133.09,0.05631826]
[1725291546692,7.58456084,133.1,133.09,0.05631826]
[1725291546893,3.7567,133.1,133.09,0.05631826]
[1725291547589,7.55788716,133.1,133.09,0.05631826]
[1725291547796,3.7567,133.1,133.09,0.05631826]
[1725291548393,7.54774365,133.1,133.09,0.05631826]
[1725291548692,3.7567,133.1,133.09,0.05631826]
[1725291548892,28.95,133.1,133.01,31.6305]
[1725291549192,32.77523104,133.1,133.01,31.6305]
[1725291549382,32.77523104,133.1,133.04,3.7584]
[1725291549779,32.77523104,133.1,133.01,31.6305]
[1725291550190,0.04917886,133.07,133.05,3.7579]
[1725291550689,0.04917886,133.07,133.04,0.047926]
[1725291551489,3.758,133.06,133.04,0.047926]
[1725291552189,3.7581,133.05,133.04,0.047926]
[1725291552994,30.3956,133.06,132.97,32.78699872]
[1725291553292,31.841,133.06,132.97,32.78699872]
[1725291553892,28.95,133.05,132.97,28.95]
[1725291554191,0.05651455,133.03,133.0,0.05178237]
[1725291554495,3.7593,133.01,133.0,0.05178237]
[1725291555595,0.05651455,133.03,133.0,0.05178237]
[1725291556192,0.05651455,133.03,133.0,1.40678237]
[1725291556496,0.05651455,133.03,133.01,28.95]
[1725291556797,0.05651455,133.03,133.02,3.759]
[1725291558092,0.05651455,133.03,133.01,30.3743]
[1725291559090,0.05651455,133.03,133.02,3.759]
[1725291559500,34.20753104,133.1,133.01,31.7779]
[1725291559997,3.7578,133.07,133.03,3.7584]
[1725291560394,34.20753104,133.1,133.03,3.7584]
[1725291560596,3.7579,133.06,133.05,0.05045703]
[1725291564205,3.759,133.02,132.97,28.95]
[1725291564502,3.77949797,133.03,132.99,3.7597]
[1725291564711,3.7593,133.01,132.99,3.7597]
[1725291565001,28.95,133.05,132.97,28.95]
[1725291565002,3.83248158,133.03,132.97,28.95]
[1725291565306,3.81568237,133.01,132.99,0.05572466]
[1725291565700,0.05628237,133.01,132.99,0.05572466]
[1725291567104,28.95,133.08,132.99,29.00572466]
[1725291567310,28.95,133.08,132.99,28.95]
[1725291567608,3.7581,133.05,133.02,3.7588]
[1725291567809,28.95,133.08,132.99,28.95]
[1725291568200,3.7581,133.06,132.99,28.95]
[1725291568405,0.05490554,133.05,133.02,0.04779414]
[1725291568594,3.81320554,133.05,133.02,3.80649414]
[1725291568907,0.05490554,133.05,133.02,0.04779414]
[1725291569608,0.05490554,133.05,133.03,3.7585]
[1725291570898,0.05490554,133.05,133.04,3.7584]
[1725291579917,0.05490554,133.05,133.04,15.2984]
[1725291581911,3.79095615,133.12,133.09,3.7569]
[1725291582110,3.79095615,133.12,133.08,11.54]
[1725291582310,12.9288,133.15,133.11,3.7562]
[1725291582516,16.62393954,133.15,133.1,11.54]
[1725291582914,3.81075368,133.14,133.11,3.80983107]
[1725291588333,3.81075368,133.14,133.12,3.7561]
[1725291589640,3.7559,133.13,133.11,3.80993107]
[1725291590340,3.7561,133.12,133.11,0.05353107]
[1725291591731,3.7561,133.13,133.11,0.05353107]
[1725291594041,3.7561,133.12,133.11,0.05353107]
[1725291596137,0.05515368,133.14,133.11,0.05353107]
[1725291597749,0.05515368,133.14,133.12,3.756]
[1725291598940,0.05515368,133.14,133.11,0.05353107]
[1725291600441,0.05515368,133.14,133.13,3.7559]
[1725291600741,0.05515368,133.14,133.11,0.05353107]
[1725291602036,3.7559,133.13,133.11,0.05353107]
[1725291603339,3.81085368,133.14,133.11,3.80983107]
[1725291603946,0.05515368,133.14,133.11,0.05353107]
[1725291605151,0.05515368,133.14,133.12,3.756]
[1725291605349,0.05515368,133.14,133.11,0.05353107]
[1725291605654,0.05515368,133.14,133.13,3.7559]
[1725291606153,0.05515368,133.14,133.13,15.2959]
[1725291609946,46.16,133.27,133.17,3.7546]
[1725291609947,12.8839,133.22,133.17,3.7546]
[1725291610154,16.59474795,133.22,133.17,3.7546]
[1725291610554,11.54,133.21,133.16,3.7549]
[1725291611152,0.05419438,133.2,133.17,0.05316682]
[1725291611455,11.59419438,133.2,133.17,0.05316682]
[1725291611655,13.00259438,133.2,133.17,0.05316682]
[1725291611853,3.7544,133.19,133.17,0.05316682]
[1725291614057,15.2945,133.18,133.17,0.05316682]
[1725291615147,0.05419438,133.2,133.17,0.05316682]
[1725291615350,0.05419438,133.2,133.18,11.54]
[1725291615558,3.80809438,133.2,133.18,11.54]
[1725291615955,3.80809438,133.2,133.17,3.80776682]
[1725291615956,0.05419438,133.2,133.17,0.05316682]
[1725291616258,3.7545,133.18,133.17,0.05316682]
[1725291616759,0.05419438,133.2,133.17,0.05316682]
[1725291617458,3.7543,133.19,133.17,0.05316682]
[1725291618055,3.7545,133.18,133.17,0.05316682]
[1725291619551,3.7545,133.18,133.1,8.03799464]
[1725291619552,3.755,133.17,133.11,11.54]
[1725291619962,3.755,133.17,133.14,3.7554]
[1725291620562,0.05051251,133.17,133.14,3.80294721]
[1725291622352,0.05051251,133.17,133.14,0.04754721]
[1725291622553,11.54,133.15,133.0,4.2727932]
[1725291622756,11.54,133.12,133.06,11.54]
[1725291622966,3.7567,133.11,133.07,3.7574]
[1725291623266,1.3647,133.18,133.1,11.54]
[1725291623456,1.3647,133.18,133.14,11.54]
[1725291623856,3.7552,133.16,133.13,3.7558]
[1725291624569,1.3647,133.18,133.1,32.65700172]
[1725291624763,0.0505198,133.17,133.15,0.04759582]
[1725291625161,3.755,133.16,133.15,0.04759582]
[1725291627464,3.7558,133.14,133.11,3.7563]
[1725291627666,28.85,133.16,133.07,28.85]
[1725291627856,28.85,133.16,133.05,28.85]
[1725291628365,28.85,133.14,133.04,6.54225878]
[1725291628559,0.05132299,133.12,133.09,0.05305562]
[1725291628761,3.89080319,133.12,133.09,0.05305562]
[1725291629073,3.89080319,133.12,132.93,3.48532889]
[1725291629074,28.90132299,133.12,133.02,28.85]
[1725291629261,28.85,133.1,133.02,28.85]
[1725291629562,28.85,133.11,133.02,28.85]
[1725291629767,32.61286336,133.11,133.02,28.85]
[1725291629968,3.7572,133.09,133.05,3.758]
[1725291630173,0.05211392,133.08,133.06,0.05014122]
[1725291630762,0.05211392,133.08,133.06,3.80784122]
[1725291631274,0.05211392,133.08,133.06,0.05014122]
[1725291631972,3.7576,133.07,133.06,0.05014122]
[1725291633564,3.7576,133.07,132.98,2.7334]
[1725291633565,28.85,133.07,132.98,2.7334]
[1725291633762,31.6229,133.06,132.97,28.85]
[1725291634570,0.05211392,133.08,133.01,28.85]
[1725291634872,2.7622,133.1,133.01,28.85]
[1725291635061,3.7583,133.05,133.01,32.6092]
[1725291635379,3.7583,133.05,133.04,0.04875024]
[1725291636370,7.53187955,133.06,133.04,0.04875024]
[1725291636567,3.77377955,133.06,133.04,0.04875024]
[1725291637367,3.7581,133.05,133.04,0.04875024]
[1725291640768,232.5095,133.18,133.04,28.89875024]
[1725291641071,28.85,133.16,133.06,28.85]
[1725291641272,3.7559,133.13,133.09,3.7568]
[1725291641471,3.80327745,133.12,133.06,32.6679358]
[1725291641674,3.80327745,133.12,133.08,0.05195961]
[1725291641675,0.05173038,133.1,133.08,0.05195961]
[1725291642970,0.05173038,133.1,133.08,28.90195961]
[1725291644370,0.05173038,133.1,133.09,3.757]
[1725291645778,0.05173038,133.1,133.08,32.65915961]
[1725291645974,0.05173038,133.1,133.08,0.05195961]
[1725291646375,3.757,133.09,133.08,0.05195961]
[1725291646564,0.05173038,133.1,133.08,0.05195961]
[1725291647072,3.757,133.09,133.08,0.05195961]
[1725291650980,3.758,133.06,133.03,28.85]
[1725291651185,3.758,133.06,133.03,32.6085]
[1725291651881,7.4740851,133.06,133.03,32.6085]
[1725291652181,7.52320481,133.06,133.03,32.66336611]
[1725291652372,3.80711971,133.06,133.03,28.90486611]
[1725291652572,3.80711971,133.06,133.04,3.7584]
[1725291652981,7.63434051,133.06,133.03,32.66336611]
[1725291653175,3.80711971,133.06,133.03,32.66336611]
[1725291653774,0.04911971,133.06,133.03,28.90486611]
[1725291654582,0.04911971,133.06,133.04,3.7582]
[1725291655374,0.04911971,133.06,133.05,3.7581]
[1725291656786,0.04911971,133.06,133.03,28.90486611]
[1725291656787,0.04911971,133.06,133.04,3.7583]
[1725291657577,3.80691971,133.06,133.04,3.7584]
[1725291658383,3.80691971,133.06,133.03,3.81336611]
[1725291659578,3.80691971,133.06,133.04,3.7584]
[1725291660388,0.04911971,133.06,133.04,3.7584]
[1725291663687,0.04911971,133.06,133.03,0.05486611]
[1725291664091,0.04911971,133.06,132.97,28.85]
[1725291664287,28.85,133.07,132.97,28.85]
[1725291664288,3.7592,133.02,132.97,28.85]
[1725291664685,3.71937471,133.08,132.99,28.85]
[1725291664987,3.7586,133.04,133.01,3.7591]
[1725291665195,3.81143397,133.04,133.01,3.81109027]
[1725291665983,0.05283397,133.04,133.01,0.05199027]
[1725291666200,3.7588,133.03,133.01,0.05199027]
[1725291667392,3.7588,133.03,133.01,3.81119027]
[1725291668493,3.7588,133.03,133.01,0.05199027]
[1725291669193,3.7588,133.03,133.01,3.81119027]
[1725291670192,0.05283397,133.04,133.02,3.7589]
[1725291670495,0.05283397,133.04,133.01,0.05199027]
[1725291670692,4.3103,133.11,133.02,32.69003213]
[1725291670989,3.7571,133.09,133.06,3.7578]
[1725291671496,3.7573,133.08,133.05,3.758]
[1725291671698,0.0576199,133.08,133.05,0.05130271]
[1725291672285,3.7578,133.06,133.05,0.05130271]
[1725291672588,0.0576199,133.08,133.05,0.05130271]
[1725291673491,0.0576199,133.08,133.06,3.7577]
[1725291674287,3.8149199,133.08,133.05,3.80930271]
[1725291674893,3.8149199,133.08,133.05,0.05130271]
[1725291674894,0.0576199,133.08,133.05,0.05130271]
[1725291675292,0.0576199,133.08,133.06,28.85]
[1725291675492,0.0576199,133.08,133.07,3.7576]
[1725291676400,0.0576199,133.08,133.05,0.05130271]
[1725291677899,3.7578,133.06,133.05,0.05130271]
[1725291680498,0.0576199,133.08,133.05,0.05130271]
[1725291681697,3.7578,133.06,133.05,0.05130271]
[1725291682294,3.7588,133.03,133.0,3.7595]
[1725291682500,7.54806799,133.03,133.0,3.7595]
[1725291683396,3.83967388,133.03,133.0,0.05178372]
[1725291683597,0.05040589,133.03,133.0,0.05178372]
[1725291684606,0.05040589,133.03,133.01,3.7591]
[1725291685195,0.05040589,133.03,133.02,3.759]
[1725291686406,0.05040589,133.03,133.01,3.7591]
[1725291688309,0.05040589,133.03,133.0,0.05178372]
[1725291688902,3.7593,133.01,133.0,0.05178372]
[1725291690109,3.7591,133.02,133.0,0.05178372]
[1725291690511,3.7593,133.01,133.0,0.05178372]
[1725291694407,3.7603,132.98,132.95,3.7609]
[1725291695114,28.85,133.02,132.95,3.7609]
[1725291695317,28.85,133.0,132.9,31.5337]
[1725291695504,3.7612,132.95,132.9,31.5337]
[1725291695808,7.45132707,132.95,132.94,0.05382757]
[1725291696006,7.45132707,132.95,132.93,0.05547484]
[1725291696204,3.7612,132.94,132.93,0.05547484]
[1725291701019,3.7616,132.93,132.86,3.66422751]
[1725291701204,3.7616,132.93,132.87,28.85]
[1725291701405,3.7616,132.93,132.87,32.56698943]
[1725291701612,3.7616,132.93,132.9,3.7622]
[1725291702414,3.80993189,132.93,132.9,3.81122345]
[1725291704414,3.7618,132.92,132.9,0.04902345]
[1725291704820,0.04833189,132.93,132.9,0.04902345]
[1725291705022,3.7621,132.91,132.9,0.04902345]
[1725291707623,3.763,132.88,132.86,3.7633]
[1725291708009,3.73645394,132.88,132.82,5.17828001]
[1725291708210,3.763,132.88,132.82,5.17828001]
[1725291708412,30.2266,132.93,132.83,28.85]
[1725291708729,0.05631218,132.89,132.87,0.05037805]
[1725291710212,0.05631218,132.89,132.88,3.7629]
[1725291713224,57.75631218,132.89,132.73,11.3013]
[1725291713421,28.85,132.86,132.76,31.6589]
[1725291713629,3.7639,132.85,132.8,3.7651]
[1725291713932,28.85,132.86,132.76,31.6589]
[1725291713933,3.72092147,132.84,132.76,31.6589]
[1725291714232,0.04751761,132.81,132.79,0.05018354]
[1725291714531,3.70360611,132.85,132.79,0.05018354]
[1725291714723,0.05058004,132.81,132.79,3.81558354]
[1725291715025,0.05781719,132.81,132.79,0.05018354]
[1725291715530,0.05781719,132.81,132.79,3.81558354]
[1725291717822,0.05781719,132.81,132.8,3.7652]
[1725291718229,28.85,132.89,132.82,3.7644]
[1725291718734,1.3766,132.93,132.86,3.7634]
[1725291718928,1.3621,132.95,132.87,28.85]
[1725291719132,31.665,132.97,132.88,1.4614]
[1725291719324,3.762,132.92,132.91,0.05261405]
[1725291719628,0.05710903,132.94,132.91,0.05261405]
[1725291719828,3.81840903,132.94,132.91,0.05261405]
[1725291720030,0.05710903,132.94,132.91,0.05261405]
[1725291720328,3.7617,132.93,132.91,0.05261405]
[1725291720631,0.05710903,132.94,132.91,0.05261405]
[1725291721419,3.81860903,132.94,132.91,0.05261405]
[1725291722430,3.7616,132.93,132.91,0.05261405]
[1725291723125,0.05710903,132.94,132.91,0.05261405]
[1725291724532,3.7618,132.92,132.91,0.05261405]
[1725291727325,0.05710903,132.94,132.91,0.05261405]
[1725291728233,3.7618,132.92,132.91,0.05261405]
[1725291731635,3.7631,132.88,132.84,2.7914]
[1725291731838,3.7631,132.88,132.86,3.7634]
[1725291732537,3.81372218,132.88,132.86,3.81925442]
[1725291732838,3.81372218,132.88,132.86,0.05585442]
[1725291736030,10.3362,132.97,132.87,28.85]
[1725291736236,2.815,132.97,132.88,3.81105154]
[1725291736438,3.7617,132.93,132.89,3.7625]
[1725291737044,0.05154793,132.92,132.9,3.8162569]
[1725291740143,3.81334793,132.92,132.9,0.0538569]
[1725291741540,0.05154793,132.92,132.9,3.8161569]
[1725291741738,0.05154793,132.92,132.9,0.0538569]
[1725291742536,0.05154793,132.92,132.91,3.7621]
[1725291743538,225.0,133.04,132.95,3.7609]
[1725291743840,30.195,133.02,132.91,1.4471]
[1725291744038,30.195,133.02,132.96,3.7604]
[1725291744438,1.3645,133.03,132.94,28.85]
[1725291744641,0.05189321,133.0,132.97,0.05618187]
[1725291745034,3.7598,132.99,132.97,0.05618187]
[1725291746749,3.81159321,133.0,132.97,0.05618187]
[1725291746950,0.05189321,133.0,132.97,0.05618187]
[1725291747649,3.7599,132.99,132.97,0.05618187]
[1725291750954,3.81149321,133.0,132.97,0.05618187]
[1725291751538,3.81149321,133.0,132.97,3.81648187]
[1725291751745,0.05189321,133.0,132.97,0.05618187]
[1725291752053,0.05189321,133.0,132.98,3.7598]
[1725291755653,0.05189321,133.0,132.99,3.7598]
[1725291757043,4.1947,133.08,132.99,28.85]
[1725291757044,3.79097744,133.07,132.99,28.85]
[1725291757249,31.7195,133.08,132.99,28.85]
[1725291757445,35.477,133.08,133.0,3.74849624]
[1725291757653,31.7195,133.08,133.04,3.7582]
[1725291757848,3.75639097,133.07,133.04,3.7582]
[1725291758043,3.8073186,133.07,133.04,3.81524443]
[1725291758448,7.5649186,133.07,133.04,3.81524443]
[1725291760746,7.5649186,133.07,133.04,0.05704443]
[1725291762450,7.5649186,133.07,133.04,3.81544443]
[1725291762851,0.05092763,133.07,133.06,3.7578]
[1725291763746,0.05092763,133.07,133.05,3.758]
[1725291764548,0.05092763,133.07,133.06,3.7578]
[1725291765859,0.05092763,133.07,133.04,0.05704443]
[1725291766056,28.90092763,133.07,133.04,0.05704443]
[1725291766556,3.7579,133.06,133.04,0.05704443]
[1725291768258,3.7581,133.05,133.04,0.05704443]
[1725291768460,32.6081,133.05,133.04,0.05704443]
[1725291769760,3.7591,133.02,132.98,1.4556]
[1725291769957,3.7591,133.02,132.99,3.7597]
[1725291770763,3.7588,133.03,132.99,3.7597]
[1725291770961,0.05726921,133.02,133.0,0.05037517]
[1725291771365,3.81626921,133.02,133.0,0.05037517]
[1725291774975,7.57623019,133.02,133.0,0.05037517]
[1725291775465,3.7593,133.01,133.0,0.05037517]
[1725291776963,0.05726921,133.02,133.0,0.05037517]
[1725291777165,0.05726921,133.02,133.0,3.80977517]
[1725291782274,3.81626921,133.02,133.0,3.80977517]
[1725291782477,3.75708878,133.02,133.0,0.05037517]
[1725291783283,3.7593,133.01,133.0,0.05037517]
[1725291784183,32.63708878,133.02,132.94,2.6579]
[1725291784771,32.57981957,133.02,132.95,3.7608]
[1725291784974,3.7602,132.98,132.95,3.7608]
[1725291785174,3.7602,132.98,132.95,3.81051755]
[1725291785175,3.81636039,132.98,132.95,3.81051755]
[1725291786182,3.7604,132.97,132.95,3.81051755]
[1725291787685,3.81636039,132.98,132.95,3.81051755]
[1725291788882,3.7605,132.97,132.95,0.04971755]
[1725291790375,3.7607,132.96,132.95,0.04971755]
[1725291797486,3.7607,132.96,132.9,151.7672]
[1725291797487,3.7616,132.93,132.9,150.44]
[1725291797685,3.7616,132.93,132.88,28.88]
[1725291797886,3.79127792,132.93,132.88,3.68032286]
[1725291798081,28.88,132.95,132.87,28.88]
[1725291798289,3.81740274,132.92,132.9,0.05590034]
[1725291801191,3.81740274,132.92,132.9,3.81830034]
[1725291802283,225.0,133.07,132.91,28.88]
[1725291802492,33.0455,133.05,132.93,28.88]
[1725291803189,0.04969021,133.0,132.98,3.81153522]
[1725291803495,0.04757467,133.0,132.98,3.81153522]
[1725291803995,3.83319764,133.0,132.98,0.05163522]
[1725291804298,0.04757467,133.0,132.98,0.05163522]
[1725291804798,3.83808523,133.0,132.98,0.05163522]
[1725291805001,3.83808523,133.0,132.98,3.81173522]
[1725291806596,7.59768523,133.0,132.98,0.05163522]
[1725291809096,3.83808523,133.0,132.98,3.81173522]
[1725291809300,0.04757467,133.0,132.98,0.05163522]
[1725291809500,0.04757467,133.0,132.98,28.93163522]
[1725291809800,0.04757467,133.0,132.99,3.7598]
[1725291810000,0.04757467,133.0,132.99,15.2998]
[1725291810992,3.81599658,133.0,132.98,3.81163522]
[1725291811197,3.80717467,133.0,132.98,0.05163522]
[1725291811497,7.6086826,133.0,132.98,0.05163522]
[1725291813000,3.7598,132.99,132.98,0.05163522]
[1725291820305,3.7601,132.98,132.89,1.4648]
[1725291820610,3.7601,132.98,132.93,11.54]
[1725291821004,3.7604,132.97,132.93,11.54]
[1725291821309,0.05152148,132.96,132.94,0.04844218]
[1725291821703,3.81222148,132.96,132.94,3.80954218]
[1725291823813,0.05152148,132.96,132.94,3.80954218]
[1725291824611,0.05152148,132.96,132.94,0.04844218]
[1725291825004,3.761,132.95,132.94,0.04844218]
[1725291826018,0.05152148,132.96,132.94,0.04844218]